bitfinex/quotes_ETHUSD_20240810
["timestamp","ask_amount","ask_price","bid_price","bid_amount"]
[1723250083224,3.84695,2599.5,2598.7,0.07695237]
[1723250083500,4.466735,2599.5,2598.8,3.84791]
[1723250083657,0.619785,2599.5,2598.8,3.84791]
[1723250083857,6.19754,2599.7,2599.0,3.84751]
[1723250084108,3.84661,2599.7,2599.0,3.84751]
[1723250084395,6.84635,2599.9,2599.2,3.8473]
[1723250084596,3.84635,2599.9,2599.2,3.8473]
[1723250085361,7.69276,2599.9,2599.2,3.8473]
[1723250085724,8.697136,2599.9,2599.1,3.84738]
[1723250085996,1.004366,2599.9,2599.0,3.8476]
[1723250086198,3.84684,2599.6,2599.0,3.8476]
[1723250086411,3.84669,2599.7,2598.8,3.84786]
[1723250086701,3.8469,2599.5,2598.9,3.84772]
[1723250087090,3.8469,2599.5,2598.8,3.84783]
[1723250087383,3.84686,2599.6,2598.9,3.84767]
[1723250088374,3.84671,2599.7,2599.0,3.84761]
[1723250088587,3.0,2600.0,2598.5,3.84829]
[1723250088818,2.3509,2600.1,2598.5,3.84829]
[1723250089115,3.84703,2599.5,2598.8,3.84789]
[1723250089414,3.84698,2599.5,2598.7,3.84797]
[1723250089578,3.84729,2599.3,2598.7,3.84797]
[1723250089777,7.69461,2599.3,2598.7,3.84797]
[1723250090025,3.84729,2599.3,2598.7,3.84797]
[1723250090186,3.84775,2599.0,2598.4,3.84851]
[1723250090588,3.84802,2598.8,2598.1,3.84886]
[1723250090902,3.84802,2598.8,2598.0,3.84904]
[1723250090903,3.84817,2598.7,2598.0,3.84904]
[1723250091085,3.84817,2598.7,2598.0,7.69806]
[1723250091289,7.69605,2598.8,2598.2,3.84879]
[1723250091470,3.84802,2598.8,2598.2,3.84879]
[1723250091670,7.69605,2598.8,2598.2,3.84879]
[1723250091876,6.19899,2598.7,2598.0,3.84902]
[1723250092077,2.3509,2599.1,2598.3,3.84858]
[1723250092272,3.84773,2599.0,2598.3,3.84858]
[1723250092514,3.84773,2599.0,2598.3,3.84854]
[1723250092682,7.69547,2599.0,2598.3,3.84854]
[1723250093017,3.0,2599.6,2598.4,0.07696165]
[1723250093323,2.3509,2599.6,2598.8,3.84781]
[1723250093624,3.8476,2599.1,2598.5,3.84833]
[1723250093778,3.84744,2599.2,2598.5,3.84833]
[1723250094176,3.84783,2598.9,2598.3,3.84862]
[1723250094473,3.84783,2598.9,2598.3,3.84858]
[1723250094879,3.84783,2598.9,2598.3,7.69716]
[1723250095137,3.84805,2598.8,2598.1,3.84888]
[1723250095275,2.3509,2598.9,2598.1,3.84889]
[1723250095475,3.84754,2599.1,2598.5,3.84832]
[1723250095732,3.84754,2599.1,2598.3,7.6971]
[1723250095733,3.84772,2599.0,2598.3,7.6971]
[1723250095874,3.84754,2599.1,2598.5,3.84836]
[1723250096075,3.84754,2599.1,2598.3,7.6971]
[1723250096271,3.84754,2599.1,2598.3,3.84854]
[1723250096517,3.84781,2598.9,2598.3,3.84854]
[1723250096705,3.84754,2599.1,2598.4,3.84851]
[1723250096706,7.69514,2599.1,2598.4,3.84851]
[1723250097076,2.3509,2599.3,2598.6,3.84813]
[1723250097404,2.3509,2599.3,2598.8,3.84783]
[1723250097604,2.3509,2599.3,2598.6,3.84812]
[1723250097809,6.19819,2599.3,2598.6,3.84812]
[1723250098014,3.84778,2598.9,2598.2,3.84873]
[1723250098324,3.84778,2598.9,2598.3,3.84856]
[1723250098478,3.84778,2598.9,2598.2,3.84872]
[1723250098880,0.384778,2598.9,2598.0,5.327]
[1723250099081,3.84791,2598.9,2598.1,3.84886]
[1723250099392,3.84822,2598.7,2598.0,3.84905]
[1723250099597,3.84832,2598.6,2598.0,3.84905]
[1723250099809,3.84802,2598.8,2598.1,3.84888]
[1723250099992,7.69605,2598.8,2598.1,3.84888]
[1723250100319,7.69605,2598.8,2598.1,3.84887]
[1723250100641,3.84867,2598.3,2597.9,0.00500313]
[1723250100777,3.84833,2598.6,2598.0,3.84898]
[1723250100990,3.84833,2598.6,2597.9,0.00500313]
[1723250100991,6.17512,2598.9,2598.2,3.84877]
[1723250101280,2.3273,2599.3,2598.7,3.84803]
[1723250101579,0.23509,2600.0,2598.4,2.2837]
[1723250101580,2.3273,2599.7,2598.4,2.2837]
[1723250101785,6.17393,2599.7,2599.0,3.84753]
[1723250102011,3.84659,2599.8,2599.3,3.84717]
[1723250102215,3.84659,2599.8,2599.1,0.07694108]
[1723250102216,4.61587,2599.8,2599.2,3.8472]
[1723250102434,2.3273,2600.1,2599.0,3.84756]
[1723250102435,3.84674,2599.6,2599.0,3.84756]
[1723250102730,3.84674,2599.6,2598.8,3.84782]
[1723250102933,2.3273,2600.1,2598.4,11.45917]
[1723250102934,3.84617,2600.0,2599.4,3.84695]
[1723250103293,3.84617,2600.0,2598.8,0.66544493]
[1723250103294,3.84655,2599.8,2599.1,3.84746]
[1723250103493,3.84728,2599.3,2598.5,0.66544493]
[1723250103695,3.84728,2599.3,2598.4,15.15201879]
[1723250103696,3.84728,2599.3,2598.7,3.84795]
[1723250103907,3.84728,2599.3,2598.6,3.84811]
[1723250103908,7.69451,2599.3,2598.6,3.84811]
[1723250104138,4.616691,2599.3,2598.5,3.84834]
[1723250104351,3.8476,2599.1,2598.4,3.84849]
[1723250104636,3.84745,2599.2,2598.0,7.6107]
[1723250104844,3.84721,2599.3,2598.0,11.30354879]
[1723250105143,6.17442,2599.4,2598.6,3.84812]
[1723250105144,3.84735,2599.2,2598.6,3.84812]
[1723250105294,10.02158,2599.4,2598.7,3.84807]
[1723250105499,6.791862,2599.4,2598.7,3.84797]
[1723250105797,6.791862,2599.4,2598.1,4.35851511]
[1723250105798,3.8475,2599.1,2598.5,3.84828]
[1723250105943,0.769494,2599.0,2598.1,3.84892]
[1723250106244,3.84806,2598.8,2598.1,3.84886]
[1723250106555,3.84822,2598.6,2598.0,7.6107]
[1723250106838,3.84822,2598.6,2598.0,11.45979]
[1723250107001,3.84822,2598.6,2598.0,9.17609]
[1723250107204,3.84863,2598.4,2597.9,0.00500313]
[1723250107403,0.384863,2598.3,2597.9,0.00500313]
[1723250107619,3.84863,2598.4,2597.9,0.00500313]
[1723250107826,5.3273,2599.0,2597.9,0.00500313]
[1723250108106,2.3273,2599.0,2598.2,3.84877]
[1723250108448,6.17444,2599.4,2598.6,3.84818]
[1723250108608,3.84719,2599.3,2598.7,3.92493983]
[1723250108947,2.3273,2599.4,2598.8,0.07695064]
[1723250109104,2.3273,2599.4,2598.8,3.84778]
[1723250109304,6.17435,2599.4,2598.8,3.84778]
[1723250109575,2.3273,2599.4,2598.8,3.84778]
[1723250109726,6.17376,2599.8,2599.0,3.84758]
[1723250109933,3.84624,2600.0,2599.1,0.07694029]
[1723250110132,3.84605,2600.1,2598.8,3.84785]
[1723250110340,3.84713,2599.4,2598.7,6.13168]
[1723250110668,3.84783,2598.9,2598.2,3.84874]
[1723250110831,6.17408,2599.6,2598.0,5.327]
[1723250111157,2.3273,2599.0,2597.9,0.00500313]
[1723250111327,3.84855,2598.4,2597.9,0.00500313]
[1723250111664,3.84876,2598.3,2597.9,0.00500313]
[1723250111866,3.84882,2598.2,2597.9,0.00500313]
[1723250112160,3.84778,2598.9,2598.1,3.84895]
[1723250112319,2.3273,2599.0,2598.2,0.07696764]
[1723250112518,3.84723,2599.3,2598.6,3.84817]
[1723250112758,3.84723,2599.3,2598.0,7.6107]
[1723250112759,0.23273,2599.5,2598.5,3.84827]
[1723250113122,3.84763,2599.1,2598.3,3.84855]
[1723250113860,3.84762,2599.1,2598.3,3.84855]
[1723250114019,4.07968,2599.5,2598.1,3.84893]
[1723250114020,3.84785,2598.9,2598.1,3.84893]
[1723250114220,6.17515,2598.9,2598.1,3.84893]
[1723250114451,3.84817,2598.7,2598.1,3.84893]
[1723250114723,3.84822,2598.6,2597.9,3.85416313]
[1723250115159,3.84866,2598.4,2597.9,0.00500313]
[1723250115425,0.384822,2598.6,2597.9,0.00500313]
[1723250115426,3.84906,2598.1,2597.9,0.00012991]
[1723250115616,3.84911,2598.0,2597.9,0.00012991]
[1723250116471,7.69822,2598.0,2597.9,0.00012991]
[1723250118001,3.84911,2598.0,2597.9,0.00012991]
[1723250118162,7.69822,2598.0,2597.9,0.00012991]
[1723250118355,8.700772,2598.0,2597.9,0.00012991]
[1723250120182,14.989282,2598.0,2597.9,0.00012991]
[1723250120358,14.989282,2598.0,2597.2,0.005]
[1723250120359,7.6503,2597.3,2597.2,0.005]
[1723250120557,16.93985,2597.3,2597.2,0.005]
[1723250121976,20.79,2597.3,2597.2,0.005]
[1723250122182,22.869,2597.3,2597.2,0.005]
[1723250122569,22.869,2597.3,2595.6,0.1269629]
[1723250122570,3.85192,2596.2,2595.6,0.1269629]
[1723250122907,3.85188,2596.2,2595.6,0.1269629]
[1723250123091,3.85065,2597.0,2596.1,3.85183]
[1723250123410,3.85074,2596.9,2596.2,0.07702761]
[1723250123587,3.85005,2597.4,2596.5,3.85132]
[1723250123758,3.8507,2597.0,2596.3,3.85154]
[1723250123957,5.7394,2597.5,2596.2,3.85177]
[1723250124159,5.7394,2597.5,2596.1,6.17223]
[1723250124160,3.85088,2596.9,2596.1,6.17223]
[1723250124361,3.85115,2596.7,2596.1,6.17223]
[1723250124595,3.85099,2596.8,2596.1,6.17223]
[1723250124896,2.4394,2596.7,2595.6,2.4473629]
[1723250125111,2.4394,2596.7,2595.6,0.1269629]
[1723250125112,3.85182,2596.2,2595.6,0.1269629]
[1723250125401,3.85238,2595.8,2595.6,0.1269629]
[1723250126101,3.85252,2595.7,2595.6,0.1269629]
[1723250126320,7.70504,2595.7,2595.6,0.1269629]
[1723250126597,6.2908,2596.5,2595.6,0.1269629]
[1723250126806,2.4394,2596.4,2595.6,0.1269629]
[1723250127155,3.85252,2595.7,2595.6,0.1269629]
[1723250127361,3.85237,2595.9,2595.6,0.1269629]
[1723250127760,2.4394,2596.4,2595.6,0.1269629]
[1723250127761,3.85252,2595.7,2595.6,0.1269629]
[1723250127993,3.85214,2596.0,2595.6,0.1269629]
[1723250127994,3.85208,2596.0,2595.6,0.1269629]
[1723250128504,3.24394,2596.3,2595.6,0.1269629]
[1723250128672,3.85222,2596.0,2595.6,0.1269629]
[1723250128886,3.8515,2596.4,2595.8,3.85232]
[1723250129204,3.85119,2596.6,2595.6,0.1269629]
[1723250129375,3.8519,2596.2,2595.6,0.1269629]
[1723250129562,3.8514,2596.5,2595.8,3.85237]
[1723250129761,3.8514,2596.5,2595.7,3.85244]
[1723250130008,3.8514,2596.5,2595.9,0.03387631]
[1723250130171,3.8514,2596.5,2595.8,3.88843022]
[1723250130374,3.8514,2596.5,2595.8,3.85226]
[1723250130592,3.8514,2596.5,2595.9,0.03617022]
[1723250130593,3.8517,2596.3,2595.9,0.03617022]
[1723250131106,0.83061466,2596.5,2596.0,0.03617022]
[1723250131407,3.85148,2596.4,2596.0,0.03617022]
[1723250131696,3.85175,2596.3,2595.6,3.9795129]
[1723250131860,3.85193,2596.1,2595.6,0.1269629]
[1723250132064,3.85193,2596.1,2595.7,0.08636153]
[1723250132266,3.85175,2596.3,2595.7,0.08636153]
[1723250132267,3.8514,2596.5,2595.7,0.08636153]
[1723250132501,2.4394,2596.4,2595.7,0.08636153]
[1723250132715,13.99651,2595.8,2595.7,0.08636153]
[1723250132896,3.75,2596.4,2593.0,2.4473629]
[1723250132897,2.4394,2595.3,2593.0,2.4473629]
[1723250133203,3.8539,2594.8,2593.0,3.9833729]
[1723250133376,3.85361,2595.0,2594.2,3.85464]
[1723250133798,3.85387,2594.8,2594.3,0.07720557]
[1723250133978,3.85361,2595.0,2594.3,0.07720557]
[1723250133979,3.85402,2594.7,2594.3,0.07720557]
[1723250134166,3.85372,2594.9,2594.0,3.85493]
[1723250134368,3.85401,2594.7,2594.0,7.70985]
[1723250134564,3.85417,2594.6,2594.1,0.07720557]
[1723250134765,3.85433,2594.5,2594.1,0.07720557]
[1723250135199,0.4539081,2594.8,2593.8,6.1757]
[1723250135200,3.85421,2594.6,2593.8,6.1757]
[1723250135408,3.85456,2594.4,2594.2,0.07720557]
[1723250135613,0.385421,2594.5,2593.5,2.3204]
[1723250135906,0.385421,2594.5,2593.8,3.85524]
[1723250136112,3.85456,2594.4,2593.6,3.93271557]
[1723250136283,3.8547,2594.3,2593.6,3.85551]
[1723250136611,3.85478,2594.2,2593.7,0.07720557]
[1723250136915,3.85485,2594.2,2593.7,0.07720557]
[1723250137122,4.5224281,2594.4,2593.7,0.07720557]
[1723250137417,0.385421,2594.5,2593.9,3.85509]
[1723250137707,4.239781,2594.5,2593.9,3.85509]
[1723250137884,4.239781,2594.5,2594.0,0.07720557]
[1723250138093,0.4239781,2594.4,2594.0,0.07720557]
[1723250138405,0.385421,2594.5,2594.0,0.07720557]
[1723250138406,3.85442,2594.5,2594.0,0.07720557]
[1723250138620,3.85478,2594.2,2593.5,3.85569]
[1723250138910,3.85478,2594.2,2593.0,3.9834529]
[1723250138911,3.85432,2594.5,2593.6,0.07882124]
[1723250139094,3.8551,2594.0,2593.6,0.07882124]
[1723250139270,3.85505,2594.0,2593.1,3.85628]
[1723250139605,3.85456,2594.4,2593.7,3.85534]
[1723250139810,2.4394,2594.6,2593.5,3.85574]
[1723250140026,3.85519,2593.9,2593.8,0.07551434]
[1723250140170,3.85513,2594.0,2593.6,0.075505]
[1723250140504,3.85575,2593.6,2593.0,0.1269629]
[1723250140922,0.3068761,2594.4,2593.0,0.1269629]
[1723250141068,3.85591,2593.5,2593.0,0.1269629]
[1723250141573,3.85556,2593.7,2593.0,0.1269629]
[1723250141795,3.8559,2593.5,2593.0,0.1269629]
[1723250142197,3.85556,2593.7,2593.0,0.1269629]
[1723250142198,2.4394,2593.7,2593.0,0.1269629]
[1723250142507,3.85566,2593.6,2593.0,0.1269629]
[1723250142704,3.85566,2593.6,2593.0,3.9834829]
[1723250143005,3.85541,2593.8,2593.0,3.9834829]
[1723250143332,5.603,2595.0,2593.0,3.9834829]
[1723250143333,3.85362,2595.0,2594.1,3.8548]
[1723250143514,3.85314,2595.3,2594.1,3.8548]
[1723250143667,3.85386,2594.8,2594.2,3.85472]
[1723250143868,3.85361,2595.0,2594.3,3.85457]
[1723250144073,0.629254,2595.2,2594.5,3.85427]
[1723250144319,9.35441,2596.5,2594.5,3.85427]
[1723250144320,2.4623,2595.8,2594.5,2.4847]
[1723250144469,3.85208,2596.0,2595.2,3.85311]
[1723250144670,3.85208,2596.0,2594.5,2.4847]
[1723250144671,0.385208,2596.0,2594.6,0.24847]
[1723250144974,6.31385,2596.4,2594.5,2.4847]
[1723250144975,3.85347,2595.1,2594.5,2.4847]
[1723250145280,3.85367,2595.0,2594.2,3.85471]
[1723250145501,3.85347,2595.1,2594.3,3.85449]
[1723250145698,7.70702,2595.1,2594.3,3.85449]
[1723250146010,3.85347,2595.1,2594.4,3.85442]
[1723250146212,3.85313,2595.3,2594.6,3.85405]
[1723250146512,3.85224,2595.9,2594.8,2.4847]
[1723250146685,3.85205,2596.1,2595.2,3.85316]
[1723250147018,3.85223,2595.9,2595.0,3.85346]
[1723250147222,2.4623,2596.3,2594.8,6.33849]
[1723250147223,3.85254,2595.7,2594.8,6.33849]
[1723250147430,3.85292,2595.5,2594.8,6.33849]
[1723250147595,3.85292,2595.5,2594.8,6.33844]
[1723250147806,2.4623,2596.3,2595.5,3.85279]
[1723250147807,6.31396,2596.3,2595.5,3.85279]
[1723250148004,3.85144,2596.5,2595.5,2.4847]
[1723250148398,7.70224,2596.7,2595.9,3.85213]
[1723250148621,3.85119,2596.6,2595.9,3.85213]
[1723250148815,0.87400056,2596.6,2596.0,3.85204]
[1723250149025,7.70223,2596.7,2596.0,3.85204]
[1723250149026,3.85107,2596.7,2596.0,3.85204]
[1723250149320,3.85133,2596.6,2596.0,3.85198]
[1723250149534,3.85163,2596.3,2595.6,3.85265]
[1723250149735,2.4623,2596.8,2595.7,3.85245]
[1723250149889,0.60360388,2597.2,2596.2,3.8517]
[1723250149890,3.85065,2597.0,2596.2,3.8517]
[1723250150091,3.85,2597.5,2596.6,3.85106]
[1723250150410,0.1,2598.4,2596.2,3.85173]
[1723250150411,3.84912,2598.0,2597.3,3.85005]
[1723250150889,3.84912,2598.0,2597.2,0.07699778]
[1723250150890,6.31102,2598.3,2597.6,3.84958]
[1723250151089,3.94734,2599.2,2597.7,0.07697896]
[1723250151090,3.84812,2598.7,2597.7,0.07697896]
[1723250151289,0.44513913,2598.6,2598.0,3.8491]
[1723250151733,3.84764,2599.0,2598.2,3.84881]
[1723250151890,3.84724,2599.3,2598.2,3.84881]
[1723250151891,3.84742,2599.2,2598.4,3.84851]
[1723250152091,3.84724,2599.3,2597.7,2.4847]
[1723250152092,3.84704,2599.4,2598.7,3.84806]
[1723250152438,3.84704,2599.4,2598.0,3.84905]
[1723250152439,3.84712,2599.4,2598.0,3.84905]
[1723250152600,2.4623,2599.6,2597.7,2.4847]
[1723250152601,3.84763,2599.0,2597.7,2.4847]
[1723250152788,3.84779,2598.9,2597.8,3.84936]
[1723250153034,3.84779,2598.9,2598.0,3.84898]
[1723250153188,3.84763,2599.0,2598.0,3.84898]
[1723250153388,3.84742,2599.2,2598.1,3.84886]
[1723250153587,3.8478,2598.9,2598.0,3.84896]
[1723250153823,3.8478,2598.9,2598.1,3.84894]
[1723250154126,3.8474,2599.2,2597.8,3.84936]
[1723250154337,3.84849,2598.5,2597.7,6.33421]
[1723250154652,0.384849,2598.5,2597.9,3.84925]
[1723250154807,3.84809,2598.7,2598.0,0.05914002]
[1723250155013,3.84809,2598.7,2597.7,6.33425]
[1723250155014,4.617682,2598.7,2597.7,6.33425]
[1723250155440,0.769592,2598.7,2598.0,3.849]
[1723250155625,3.8484,2598.5,2597.8,3.84937]
[1723250155834,3.84852,2598.4,2597.9,0.05914002]
[1723250156150,4.233372,2598.4,2597.7,2.4847]
[1723250156456,3.84825,2598.6,2597.8,3.84933]
[1723250156615,2.4623,2598.9,2597.9,0.05914002]
[1723250156957,2.4623,2598.9,2597.7,2.4847]
[1723250156958,6.84785,2598.9,2597.7,2.4847]
[1723250157125,3.84764,2599.0,2598.3,3.84856]
[1723250157329,3.84734,2599.2,2598.5,3.84835]
[1723250157640,3.84734,2599.2,2598.4,3.84851]
[1723250157641,4.778494,2599.1,2598.4,3.84851]
[1723250157954,3.84765,2599.0,2598.5,0.05914002]
[1723250158147,3.84789,2598.9,2598.5,0.05914002]
[1723250158313,0.8626504,2598.9,2598.2,3.84879]
[1723250158517,2.4623,2599.3,2597.8,0.24847]
[1723250158518,7.69614,2598.7,2598.6,0.05914002]
[1723250158751,3.0,2599.0,2597.7,6.33411]
[1723250158950,3.84809,2598.7,2597.7,6.33411]
[1723250159244,0.3,2598.9,2597.7,6.33411]
[1723250159245,3.84852,2598.4,2597.8,0.05914002]
[1723250159626,3.84823,2598.6,2597.8,3.90853002]
[1723250159825,3.84868,2598.3,2597.8,0.05914002]
[1723250160240,3.84889,2598.2,2597.8,0.05914002]
[1723250160420,3.84889,2598.2,2597.3,2.4511]
[1723250160421,0.769747,2598.2,2597.3,2.4511]
[1723250160641,3.84841,2598.5,2597.8,3.84937]
[1723250160863,3.384823,2598.6,2597.4,3.84993]
[1723250161022,3.84895,2598.2,2597.4,3.84993]
[1723250161223,3.84895,2598.2,2597.5,3.9094066]
[1723250161428,3.84895,2598.2,2597.5,0.0595866]
[1723250161851,3.84897,2598.1,2597.5,0.0595866]
[1723250162048,3.84815,2598.7,2597.5,0.0595866]
[1723250162249,3.849,2598.1,2597.5,0.0595866]
[1723250162455,3.0,2598.5,2596.9,2.4511]
[1723250162456,3.84843,2598.5,2597.8,3.84937]
[1723250162656,3.84811,2598.7,2597.8,3.84937]
[1723250162859,3.84839,2598.5,2597.9,0.05977273]
[1723250163064,3.0,2598.6,2597.6,2.4511]
[1723250163373,6.31174,2599.2,2598.4,3.84851]
[1723250163653,3.84681,2599.6,2598.5,6.29943]
[1723250163654,3.84714,2599.4,2598.5,6.29943]
[1723250163864,2.4644,2599.6,2598.5,6.29943]
[1723250163865,2.4644,2599.6,2598.5,0.05980065]
[1723250164165,3.84756,2599.1,2598.3,3.84852]
[1723250164340,3.84766,2599.0,2598.6,0.06059152]
[1723250164529,3.84766,2599.0,2598.3,3.84852]
[1723250164530,3.84766,2599.0,2598.3,3.92537647]
[1723250164756,6.3112,2599.6,2598.7,0.0599867]
[1723250164757,2.4644,2599.6,2598.7,0.0599867]
[1723250164962,3.84642,2599.9,2597.3,2.4511]
[1723250164963,3.84879,2598.3,2597.3,2.4511]
[1723250165149,3.84879,2598.3,2597.6,3.8496]
[1723250165660,3.84826,2598.6,2598.0,3.84908]
[1723250165822,3.84833,2598.6,2598.1,0.0575623]
[1723250166028,0.769621,2598.6,2598.1,0.0575623]
[1723250166230,0.769621,2598.6,2597.0,3.85046]
[1723250166231,3.84881,2598.2,2597.0,3.85046]
[1723250166562,3.84881,2598.2,2597.4,3.84995]
[1723250166563,3.84904,2598.1,2597.4,3.84995]
[1723250166737,7.69813,2598.1,2597.4,3.84989]
[1723250167167,3.84904,2598.1,2597.5,3.90613607]
[1723250167344,3.0,2598.7,2597.5,0.05636607]
[1723250167547,3.84911,2598.0,2597.5,0.05636607]
[1723250167756,3.84849,2598.5,2597.5,0.05636607]
[1723250167969,3.0,2598.9,2598.3,3.84855]
[1723250167970,3.84788,2598.9,2598.3,3.84855]
[1723250168143,0.769541,2598.9,2597.7,3.8495]
[1723250168370,3.84837,2598.5,2598.4,0.05635678]
[1723250168554,3.84853,2598.4,2597.7,7.69892]
[1723250168889,3.848,2598.8,2598.0,3.84898]
[1723250169043,3.8477,2599.0,2598.1,3.84896]
[1723250169243,3.8477,2599.0,2598.2,2.4511]
[1723250169544,3.84805,2598.8,2598.3,0.05635678]
[1723250170050,0.24644,2599.1,2598.3,0.05635678]
[1723250170255,3.84763,2599.0,2598.3,3.90490678]
[1723250170466,3.84763,2599.0,2598.4,3.8485]
[1723250170676,3.84731,2599.3,2598.5,3.84824]
[1723250170860,3.84651,2599.8,2599.0,3.84751]
[1723250171059,3.84764,2599.0,2598.2,2.4511]
[1723250171350,0.384651,2599.7,2598.2,2.4511]
[1723250171351,3.84792,2598.9,2598.2,2.4511]
[1723250171694,2.4644,2599.4,2597.9,3.84924]
[1723250171695,3.84828,2598.6,2597.9,3.84924]
[1723250171877,3.84828,2598.6,2598.0,3.84901]
[1723250171878,4.233108,2598.6,2598.0,3.84901]
[1723250172058,3.84839,2598.5,2598.0,3.84901]
[1723250172259,3.84752,2599.1,2597.4,5.503]
[1723250172260,3.84764,2599.0,2597.4,2.4511]
[1723250172467,3.8489,2598.2,2597.5,3.84973]
[1723250172847,3.84799,2598.8,2597.4,2.4511]
[1723250173053,3.0,2599.0,2598.2,3.84881]
[1723250173054,4.779124,2598.9,2598.2,3.84881]
[1723250173291,3.84823,2598.6,2598.0,3.84899]
[1723250173597,0.384823,2598.6,2598.1,3.84884]
[1723250173884,4.778994,2598.9,2598.2,3.84873]
[1723250174084,3.84809,2598.7,2598.1,3.84888]
[1723250174385,4.778994,2598.9,2598.1,3.84888]
[1723250174587,0.4778994,2598.8,2598.1,3.84888]
[1723250174794,3.84779,2598.9,2598.1,3.84888]
[1723250175091,2.4644,2599.1,2598.1,3.84886]
[1723250175252,3.84822,2598.7,2598.0,3.84901]
[1723250175451,4.233012,2598.7,2598.0,3.84901]
[1723250175858,3.84796,2598.8,2598.2,3.8488]
[1723250176087,3.0,2599.3,2597.7,2.4511]
[1723250176088,3.84763,2599.0,2597.7,2.4511]
[1723250176291,7.69489,2599.2,2598.5,3.84824]
[1723250176463,3.84744,2599.2,2598.5,3.84824]
[1723250176651,7.69488,2599.2,2598.5,3.84824]
[1723250176857,7.69487,2599.2,2598.5,3.84824]
[1723250177190,3.84743,2599.2,2598.5,3.84824]
[1723250177392,3.84712,2599.4,2598.8,3.84783]
[1723250177703,3.84682,2599.6,2598.9,3.84771]
[1723250177704,3.84698,2599.5,2598.9,3.84771]
[1723250177993,3.84691,2599.5,2598.9,3.84769]
[1723250178190,6.31096,2599.8,2599.2,3.84731]
[1723250178191,3.84656,2599.8,2599.2,3.84731]
[1723250178777,2.4644,2600.2,2598.8,3.84784]
[1723250178778,3.84684,2599.6,2598.8,3.84784]
[1723250179085,3.84684,2599.6,2598.1,6.8489]
[1723250179086,3.84743,2599.2,2598.2,2.2567]
[1723250179268,3.84789,2598.9,2598.2,6.10544]
[1723250179468,3.84704,2599.4,2598.0,3.84904]
[1723250179469,3.84818,2598.7,2598.0,3.84904]
[1723250179685,3.84818,2598.7,2598.0,3.84901]
[1723250180008,3.8474,2599.2,2598.3,3.84862]
[1723250180216,3.8474,2599.2,2598.5,7.69657]
[1723250180381,3.8474,2599.2,2598.5,3.84828]
[1723250180382,4.7027647,2599.2,2598.5,3.84828]
[1723250180707,3.84763,2599.0,2598.5,3.84828]
[1723250181483,3.84763,2599.0,2597.8,5.95480093]
[1723250181484,3.8484,2598.5,2597.9,3.84915]
[1723250181794,4.23324,2598.5,2597.9,3.84915]
[1723250181999,4.23324,2598.5,2597.7,3.84948]
[1723250182000,3.84868,2598.3,2597.7,3.84945]
[1723250182500,3.84856,2598.4,2597.7,3.84945]
[1723250182711,3.84893,2598.2,2597.3,6.10678]
[1723250182865,3.84893,2598.2,2597.0,0.66582994]
[1723250182866,3.84972,2597.6,2597.0,0.66582994]
[1723250183068,3.8497,2597.6,2596.9,2.2567]
[1723250183302,3.8501,2597.4,2596.8,3.85086]
[1723250183479,3.8506,2597.0,2596.3,3.85154]
[1723250183882,2.2834,2597.5,2596.1,2.2567]
[1723250183883,3.85022,2597.3,2596.4,0.07702319]
[1723250184070,3.84982,2597.6,2597.0,3.8505]
[1723250184269,6.13264,2598.0,2597.2,3.85018]
[1723250184528,6.13264,2598.0,2597.3,0.05367936]
[1723250184529,3.8498,2597.6,2597.3,0.05367936]
[1723250184706,3.8497,2597.7,2597.3,0.05367936]
[1723250184911,3.8497,2597.7,2597.1,3.85044]
[1723250184912,3.84968,2597.7,2597.1,3.85044]
[1723250185114,3.84968,2597.7,2597.2,0.05367936]
[1723250185311,3.84932,2597.9,2597.3,3.85012]
[1723250185716,3.84943,2597.8,2597.1,7.70073]
[1723250185941,3.84932,2597.9,2597.4,0.05367936]
[1723250186227,3.84923,2598.0,2597.3,3.8501]
[1723250186393,3.84956,2597.7,2597.5,0.05367936]
[1723250186598,0.8553647,2599.2,2596.8,3.85089]
[1723250186599,3.84978,2597.6,2596.8,3.85089]
[1723250186805,3.84942,2597.8,2597.1,3.85042]
[1723250187004,3.0,2597.7,2596.9,3.85067]
[1723250187221,3.613282,2597.7,2596.6,3.85114]
[1723250187421,3.84988,2597.5,2596.9,3.85064]
[1723250187594,3.84971,2597.6,2596.9,3.85064]
[1723250188122,3.85004,2597.4,2596.7,3.85092]
[1723250188885,1.1312472,2597.6,2596.5,6.10797]
[1723250189210,1.1312472,2597.6,2595.7,2.2567]
[1723250189211,3.85158,2596.4,2595.7,2.2567]
[1723250189382,3.85141,2596.5,2595.8,3.85228]
[1723250189589,3.8511,2596.7,2595.7,2.2567]
[1723250189786,3.8511,2596.7,2596.1,3.85185]
[1723250190029,3.8511,2596.7,2595.7,2.2567]
[1723250190030,3.85078,2596.9,2596.2,3.85177]
[1723250190239,2.2834,2597.4,2596.1,0.07703312]
[1723250190383,6.85006,2597.4,2596.6,3.85107]
[1723250190583,3.85042,2597.2,2596.4,2.2567]
[1723250190784,3.84995,2597.5,2596.5,0.07701471]
[1723250190990,2.2834,2597.8,2596.6,3.85107]
[1723250190991,3.85009,2597.4,2596.6,3.85107]
[1723250191197,0.22834,2597.7,2596.7,3.85095]
[1723250191441,6.13222,2598.2,2597.4,3.84991]
[1723250191593,2.2834,2598.2,2597.0,2.2567]
[1723250191792,2.2834,2598.2,2596.2,3.85169]
[1723250191793,3.85033,2597.2,2596.5,6.10791]
[1723250192099,3.8505,2597.1,2596.5,6.10791]
[1723250192333,3.8505,2597.1,2595.6,5.503]
[1723250192334,2.2834,2597.5,2596.2,2.2567]